[Event "Titled Tuesday Blitz March 08 Early 2022"]
[White "Fier, Alexandr"]
[Black "Paravyan, David"]
[WhiteFideId "2107139"]
[BlackFideId "4194985"]
[WhiteElo "2571"]
[BlackElo "2569"]
[Result "0-1"]
[Round "07"]
[TimeControl "180+1"]
[Date "2022.03.08"]
[WhiteClock "0:00:16"]
[BlackClock "0:00:05"]

1. d4 {[%clk 0:03:00]}  Nf6 {[%clk 0:02:57]} 2. Bg5 {[%clk 0:03:01]}  d5 {[%clk 0:02:56]} 3. e3 {[%clk 0:02:59]}  c5 {[%clk 0:02:53]} 4. Bxf6 {[%clk 0:02:59]}  gxf6 {[%clk 0:02:54]} 5. Nc3 {[%clk 0:02:59]}  e6 {[%clk 0:02:52]} 6. Qh5 {[%clk 0:02:59]}  Nc6 {[%clk 0:02:47]} 7. Nf3 {[%clk 0:02:59]}  Bd7 {[%clk 0:02:45]} 8. Bb5 {[%clk 0:02:54]}  a6 {[%clk 0:02:45]} 9. Bxc6 {[%clk 0:02:54]}  Bxc6 {[%clk 0:02:46]} 10. O-O {[%clk 0:02:52]}  Qc7 {[%clk 0:02:46]} 11. Rad1 {[%clk 0:02:49]}  O-O-O {[%clk 0:02:44]} 12. Rfe1 {[%clk 0:02:49]}  Kb8 {[%clk 0:02:28]} 13. a3 {[%clk 0:02:48]}  Bd6 {[%clk 0:02:15]} 14. g3 {[%clk 0:02:40]}  Rhe8 {[%clk 0:02:00]} 15. Qh6 {[%clk 0:02:32]}  Qe7 {[%clk 0:01:45]} 16. Ne2 {[%clk 0:02:31]}  Rc8 {[%clk 0:01:32]} 17. c3 {[%clk 0:02:30]}  e5 {[%clk 0:01:23]} 18. Nh4 {[%clk 0:02:29]}  Qe6 {[%clk 0:01:19]} 19. Qh5 {[%clk 0:02:29]}  Rg8 {[%clk 0:01:17]} 20. Qf5 {[%clk 0:02:26]}  Rg5 {[%clk 0:01:02]} 21. Qxe6 {[%clk 0:02:17]}  fxe6 {[%clk 0:01:03]} 22. f4 {[%clk 0:02:18]}  Rg4 {[%clk 0:00:47]} 23. Nf3 {[%clk 0:02:15]}  e4 {[%clk 0:00:45]} 24. Nd2 {[%clk 0:02:13]}  c4 {[%clk 0:00:43]} 25. Kf2 {[%clk 0:02:13]}  h5 {[%clk 0:00:42]} 26. h4 {[%clk 0:02:13]}  Ba4 {[%clk 0:00:41]} 27. Rc1 {[%clk 0:02:13]}  Rc6 {[%clk 0:00:41]} 28. Ra1 {[%clk 0:02:03]}  Rb6 {[%clk 0:00:39]} 29. Ra2 {[%clk 0:02:03]}  Rg8 {[%clk 0:00:39]} 30. Rg1 {[%clk 0:01:57]}  f5 {[%clk 0:00:38]} 31. Re1 {[%clk 0:01:54]}  Rb5 {[%clk 0:00:36]} 32. Ng1 {[%clk 0:01:51]}  Kc7 {[%clk 0:00:34]} 33. Nh3 {[%clk 0:01:50]}  Kd7 {[%clk 0:00:34]} 34. Nf1 {[%clk 0:01:40]}  Rc8 {[%clk 0:00:34]} 35. Re2 {[%clk 0:01:40]}  Rc6 {[%clk 0:00:33]} 36. Rd2 {[%clk 0:01:40]}  Rcb6 {[%clk 0:00:32]} 37. Ke1 {[%clk 0:01:40]}  Ke7 {[%clk 0:00:31]} 38. Nf2 {[%clk 0:01:40]}  Kf6 {[%clk 0:00:31]} 39. Nd1 {[%clk 0:01:39]}  Bb3 {[%clk 0:00:31]} 40. Ra1 {[%clk 0:01:34]}  Bxd1 {[%clk 0:00:31]} 41. Kxd1 {[%clk 0:01:34]}  Rxb2 {[%clk 0:00:31]} 42. Rxb2 {[%clk 0:01:35]}  Rxb2 {[%clk 0:00:32]} 43. Nd2 {[%clk 0:01:36]}  Rb5 {[%clk 0:00:21]} 44. Kc2 {[%clk 0:01:36]}  Ra5 {[%clk 0:00:14]} 45. Kb2 {[%clk 0:01:34]}  Ra4 {[%clk 0:00:14]} 46. Ra2 {[%clk 0:01:30]}  b5 {[%clk 0:00:14]} 47. Nb1 {[%clk 0:01:29]}  a5 {[%clk 0:00:14]} 48. Ra1 {[%clk 0:01:29]}  Ke7 {[%clk 0:00:11]} 49. Ra2 {[%clk 0:01:29]}  Kd7 {[%clk 0:00:12]} 50. Ra1 {[%clk 0:01:30]}  Kc6 {[%clk 0:00:13]} 51. Ra2 {[%clk 0:01:30]}  b4 {[%clk 0:00:13]} 52. Ra1 {[%clk 0:01:31]}  Kb5 {[%clk 0:00:11]} 53. Ra2 {[%clk 0:01:30]}  Kb6 {[%clk 0:00:10]} 54. Ra1 {[%clk 0:01:31]}  Kc6 {[%clk 0:00:10]} 55. Ra2 {[%clk 0:01:31]}  Kb5 {[%clk 0:00:10]} 56. Ra1 {[%clk 0:01:32]}  Ka6 {[%clk 0:00:08]} 57. Ra2 {[%clk 0:01:32]}  Kb7 {[%clk 0:00:08]} 58. Ra1 {[%clk 0:01:32]}  Kc6 {[%clk 0:00:09]} 59. Ra2 {[%clk 0:01:33]}  bxa3+ {[%clk 0:00:07]} 60. Kc2 {[%clk 0:01:32]}  Kb5 {[%clk 0:00:07]} 61. Nd2 {[%clk 0:01:33]}  Kb6 {[%clk 0:00:05]} 62. Nb1 {[%clk 0:01:32]}  Kc6 {[%clk 0:00:05]} 63. Nd2 {[%clk 0:01:33]}  Kb7 {[%clk 0:00:06]} 64. Nb1 {[%clk 0:01:33]}  Ka6 {[%clk 0:00:06]} 65. Nd2 {[%clk 0:01:34]}  Kb6 {[%clk 0:00:07]} 66. Nb1 {[%clk 0:01:34]}  Kb5 {[%clk 0:00:08]} 67. Nd2 {[%clk 0:01:35]}  Rb4 {[%clk 0:00:05]} 68. cxb4 {[%clk 0:00:26]}  axb4 {[%clk 0:00:06]} 69. Ra1 {[%clk 0:00:26]}  Ka4 {[%clk 0:00:06]} 70. Nb1 {[%clk 0:00:20]}  b3+ {[%clk 0:00:04]} 71. Kd1 {[%clk 0:00:20]}  b2 {[%clk 0:00:03]} 72. Rxa3+ {[%clk 0:00:16]}  Bxa3 {[%clk 0:00:02]} 73. Kc2 {[%clk 0:00:17]}  Kb4 {[%clk 0:00:03]} 74. Nc3 {[%clk 0:00:17]}  Ka5 {[%clk 0:00:03]} 75. Nb1 {[%clk 0:00:17]}  Ka4 {[%clk 0:00:04]} 76. Nc3+ {[%clk 0:00:18]}  Ka5 {[%clk 0:00:04]} 77. Nb1 {[%clk 0:00:18]}  Bb4 {[%clk 0:00:05]} 78. Kxb2 {[%clk 0:00:16]}  Be1 {[%clk 0:00:05]} 0-1


[Site "https://www.chess.com"]

[Event "Titled Tuesday Blitz March 08 Early 2022"]
[White "Garriga Cazorla, Pere"]
[Black "Agasarov, Benik"]
[WhiteFideId "32011601"]
[BlackFideId "13314823"]
[WhiteElo "2458"]
[BlackElo "2576"]
[Result "1-0"]
[Round "07"]
[TimeControl "180+1"]
[Date "2022.03.09"]
[WhiteClock "0:01:18"]
[BlackClock "0:01:40"]

1. d4 {[%clk 0:03:00]}  Nf6 {[%clk 0:02:58]} 2. c4 {[%clk 0:02:58]}  e6 {[%clk 0:02:57]} 3. Nc3 {[%clk 0:02:58]}  Bb4 {[%clk 0:02:54]} 4. Qc2 {[%clk 0:02:58]}  d5 {[%clk 0:02:54]} 5. cxd5 {[%clk 0:02:57]}  exd5 {[%clk 0:02:54]} 6. Bg5 {[%clk 0:02:57]}  c5 {[%clk 0:02:53]} 7. dxc5 {[%clk 0:02:57]}  h6 {[%clk 0:02:52]} 8. Bh4 {[%clk 0:02:56]}  g5 {[%clk 0:02:52]} 9. Bg3 {[%clk 0:02:56]}  Ne4 {[%clk 0:02:51]} 10. e3 {[%clk 0:02:46]}  Qa5 {[%clk 0:02:49]} 11. Be5 {[%clk 0:02:28]}  O-O {[%clk 0:02:45]} 12. Bd3 {[%clk 0:02:28]}  Nc6 {[%clk 0:02:39]} 13. Bxe4 {[%clk 0:02:13]}  Nxe5 {[%clk 0:02:34]} 14. Bxd5 {[%clk 0:02:09]}  Qxc5 {[%clk 0:02:33]} 15. Bb3 {[%clk 0:01:53]}  Bf5 {[%clk 0:02:28]} 16. Qxf5 {[%clk 0:01:52]}  Bxc3+ {[%clk 0:02:27]} 17. Kf1 {[%clk 0:01:51]}  Bxb2 {[%clk 0:02:25]} 18. Rb1 {[%clk 0:01:50]}  Rad8 {[%clk 0:02:04]} 19. h4 {[%clk 0:01:40]}  Bc1 {[%clk 0:01:54]} 20. hxg5 {[%clk 0:01:29]}  Qc4+ {[%clk 0:01:50]} 21. Bxc4 {[%clk 0:01:25]}  Rd1+ {[%clk 0:01:45]} 22. Ke2 {[%clk 0:01:25]}  Rfd8 {[%clk 0:01:40]} 23. Qxe5 {[%clk 0:01:18]} 1-0


[Site "https://www.chess.com"]

[Event "Titled Tuesday Blitz March 08 Early 2022"]
[White "Golubka, Petro"]
[Black "Voit, Daria"]
[WhiteFideId "14114224"]
[BlackFideId "4182146"]
[WhiteElo "2346"]
[BlackElo "2323"]
[Result "1-0"]
[Round "07"]
[TimeControl "180+1"]
[Date "2022.03.09"]
[WhiteClock "0:00:17"]
[BlackClock "0:00:04"]

1. e4 {[%clk 0:02:51]}  c6 {[%clk 0:02:59]} 2. d4 {[%clk 0:02:45]}  d5 {[%clk 0:03:00]} 3. e5 {[%clk 0:02:45]}  Bf5 {[%clk 0:03:00]} 4. Nd2 {[%clk 0:02:42]}  c5 {[%clk 0:02:57]} 5. dxc5 {[%clk 0:02:41]}  e6 {[%clk 0:02:55]} 6. Nb3 {[%clk 0:02:40]}  Bxc5 {[%clk 0:02:54]} 7. Nxc5 {[%clk 0:02:40]}  Qa5+ {[%clk 0:02:55]} 8. c3 {[%clk 0:02:41]}  Qxc5 {[%clk 0:02:55]} 9. Be3 {[%clk 0:02:42]}  Qc7 {[%clk 0:02:56]} 10. Nf3 {[%clk 0:02:43]}  Ne7 {[%clk 0:02:53]} 11. Bb5+ {[%clk 0:02:36]}  Nd7 {[%clk 0:02:52]} 12. Nd4 {[%clk 0:02:31]}  O-O {[%clk 0:02:32]} 13. f4 {[%clk 0:02:28]}  Be4 {[%clk 0:02:28]} 14. O-O {[%clk 0:02:27]}  Nb6 {[%clk 0:02:06]} 15. b3 {[%clk 0:02:02]}  Qxc3 {[%clk 0:01:59]} 16. Qc1 {[%clk 0:02:02]}  Qxc1 {[%clk 0:01:53]} 17. Rfxc1 {[%clk 0:02:03]}  Rfc8 {[%clk 0:01:49]} 18. g4 {[%clk 0:02:00]}  a6 {[%clk 0:01:41]} 19. Be2 {[%clk 0:01:58]}  Nd7 {[%clk 0:01:41]} 20. h4 {[%clk 0:01:55]}  Nc6 {[%clk 0:01:28]} 21. Kf2 {[%clk 0:01:52]}  Nb4 {[%clk 0:01:18]} 22. Bd2 {[%clk 0:01:44]}  Nd3+ {[%clk 0:01:16]} 23. Bxd3 {[%clk 0:01:44]}  Bxd3 {[%clk 0:01:17]} 24. Ke3 {[%clk 0:01:44]}  Be4 {[%clk 0:01:13]} 25. h5 {[%clk 0:01:44]}  Nb6 {[%clk 0:00:48]} 26. Bb4 {[%clk 0:01:24]}  Rxc1 {[%clk 0:00:46]} 27. Rxc1 {[%clk 0:01:25]}  Rc8 {[%clk 0:00:46]} 28. Re1 {[%clk 0:01:19]}  Nd7 {[%clk 0:00:43]} 29. Kd2 {[%clk 0:01:08]}  b6 {[%clk 0:00:29]} 30. Bd6 {[%clk 0:01:01]}  h6 {[%clk 0:00:14]} 31. Rg1 {[%clk 0:00:54]}  Kh7 {[%clk 0:00:12]} 32. g5 {[%clk 0:00:52]}  Bf5 {[%clk 0:00:09]} 33. Nxf5 {[%clk 0:00:28]}  exf5 {[%clk 0:00:09]} 34. g6+ {[%clk 0:00:29]}  Kg8 {[%clk 0:00:08]} 35. Kd3 {[%clk 0:00:22]}  Nc5+ {[%clk 0:00:06]} 36. Bxc5 {[%clk 0:00:21]}  bxc5 {[%clk 0:00:04]} 37. gxf7+ {[%clk 0:00:22]}  Kxf7 {[%clk 0:00:04]} 38. Rg6 {[%clk 0:00:22]}  a5 {[%clk 0:00:04]} 39. Rd6 {[%clk 0:00:22]}  c4+ {[%clk 0:00:04]} 40. bxc4 {[%clk 0:00:21]}  dxc4+ {[%clk 0:00:05]} 41. Kc3 {[%clk 0:00:21]}  Rc5 {[%clk 0:00:04]} 42. a4 {[%clk 0:00:21]}  Rc8 {[%clk 0:00:03]} 43. Rd5 {[%clk 0:00:20]}  Rb8 {[%clk 0:00:02]} 44. Rxa5 {[%clk 0:00:20]}  Rb1 {[%clk 0:00:02]} 45. Ra7+ {[%clk 0:00:19]}  Ke6 {[%clk 0:00:03]} 46. Rxg7 {[%clk 0:00:19]}  Rf1 {[%clk 0:00:03]} 47. a5 {[%clk 0:00:17]}  Rxf4 {[%clk 0:00:03]} 48. a6 {[%clk 0:00:17]}  Rf3+ {[%clk 0:00:01]} 49. Kxc4 {[%clk 0:00:17]}  Ra3 {[%clk 0:00:01]} 50. Kb4 {[%clk 0:00:16]}  Ra2 {[%clk 0:00:01]} 51. a7 {[%clk 0:00:16]}  Kxe5 {[%clk 0:00:01]} 52. Kb5 {[%clk 0:00:16]}  Ke4 {[%clk 0:00:02]} 53. Kb6 {[%clk 0:00:16]}  f4 {[%clk 0:00:02]} 54. Re7+ {[%clk 0:00:16]}  Kd3 {[%clk 0:00:02]} 55. Rd7+ {[%clk 0:00:16]}  Ke3 {[%clk 0:00:02]} 56. Re7+ {[%clk 0:00:17]}  Kd3 {[%clk 0:00:02]} 57. Rf7 {[%clk 0:00:17]}  Ke3 {[%clk 0:00:02]} 58. Rf8 {[%clk 0:00:18]}  Rb2+ {[%clk 0:00:01]} 59. Kc6 {[%clk 0:00:18]}  Rc2+ {[%clk 0:00:01]} 60. Kd5 {[%clk 0:00:17]}  Rd2+ {[%clk 0:00:01]} 61. Ke5 {[%clk 0:00:17]}  Ra2 {[%clk 0:00:02]} 62. a8=Q {[%clk 0:00:17]}  Rxa8 {[%clk 0:00:03]} 63. Rxa8 {[%clk 0:00:18]}  f3 {[%clk 0:00:04]} 64. Ra3+ {[%clk 0:00:18]}  Ke2 {[%clk 0:00:05]} 65. Ke4 {[%clk 0:00:17]}  f2 {[%clk 0:00:05]} 66. Ra2+ {[%clk 0:00:18]}  Ke1 {[%clk 0:00:06]} 67. Ke3 {[%clk 0:00:18]}  f1=N+ {[%clk 0:00:04]} 68. Kf4 {[%clk 0:00:17]} 1-0


[Site "https://www.chess.com"]

[Event "Titled Tuesday Blitz March 08 Early 2022"]
[White "Goryachkina, Aleksandra"]
[Black "Kuzmin, Roman"]
[WhiteFideId "4147103"]
[BlackFideId "44134932"]
[WhiteElo "2426"]
[BlackElo "1978"]
[Result "1-0"]
[Round "07"]
[TimeControl "180+1"]
[Date "2022.03.09"]
[WhiteClock "0:00:01"]
[BlackClock "0:00:03"]

1. e4 {[%clk 0:02:59]}  c5 {[%clk 0:02:59]} 2. Nf3 {[%clk 0:02:59]}  d6 {[%clk 0:02:59]} 3. d4 {[%clk 0:02:58]}  cxd4 {[%clk 0:02:59]} 4. Nxd4 {[%clk 0:02:59]}  Nf6 {[%clk 0:03:00]} 5. Nc3 {[%clk 0:02:59]}  a6 {[%clk 0:03:00]} 6. Be3 {[%clk 0:02:57]}  e5 {[%clk 0:03:00]} 7. Nf3 {[%clk 0:02:57]}  Be7 {[%clk 0:02:54]} 8. Bc4 {[%clk 0:02:56]}  Be6 {[%clk 0:02:48]} 9. Bb3 {[%clk 0:02:55]}  h6 {[%clk 0:02:37]} 10. O-O {[%clk 0:02:53]}  O-O {[%clk 0:02:37]} 11. h3 {[%clk 0:02:45]}  Nbd7 {[%clk 0:02:32]} 12. Nh4 {[%clk 0:02:40]}  Bxb3 {[%clk 0:01:11]} 13. axb3 {[%clk 0:02:36]}  Nxe4 {[%clk 0:01:11]} 14. Nxe4 {[%clk 0:02:34]}  Bxh4 {[%clk 0:01:12]} 15. Qxd6 {[%clk 0:02:21]}  Be7 {[%clk 0:01:00]} 16. Qd5 {[%clk 0:02:19]}  Qc7 {[%clk 0:00:58]} 17. Rfd1 {[%clk 0:01:16]}  Rfd8 {[%clk 0:00:57]} 18. Qc4 {[%clk 0:01:13]}  Qxc4 {[%clk 0:00:48]} 19. bxc4 {[%clk 0:01:13]}  f5 {[%clk 0:00:48]} 20. Nc3 {[%clk 0:01:12]}  f4 {[%clk 0:00:44]} 21. Nd5 {[%clk 0:01:09]}  Bc5 {[%clk 0:00:24]} 22. Bxc5 {[%clk 0:00:57]}  Nxc5 {[%clk 0:00:25]} 23. f3 {[%clk 0:00:49]}  Kf7 {[%clk 0:00:20]} 24. Nb6 {[%clk 0:00:45]}  Rab8 {[%clk 0:00:18]} 25. b4 {[%clk 0:00:42]}  Ne6 {[%clk 0:00:17]} 26. Nd7 {[%clk 0:00:39]}  Rbc8 {[%clk 0:00:17]} 27. Nxe5+ {[%clk 0:00:39]}  Kf6 {[%clk 0:00:17]} 28. Nd7+ {[%clk 0:00:36]}  Ke7 {[%clk 0:00:17]} 29. Nb6 {[%clk 0:00:37]}  Rc6 {[%clk 0:00:16]} 30. c5 {[%clk 0:00:36]}  Nd4 {[%clk 0:00:12]} 31. Re1+ {[%clk 0:00:23]}  Kf7 {[%clk 0:00:11]} 32. Rad1 {[%clk 0:00:21]}  a5 {[%clk 0:00:04]} 33. Nc4 {[%clk 0:00:10]}  Re6 {[%clk 0:00:02]} 34. Rxe6 {[%clk 0:00:02]}  Kxe6 {[%clk 0:00:03]} 35. Re1+ {[%clk 0:00:01]} 1-0


[Site "https://www.chess.com"]

[Event "Titled Tuesday Blitz March 08 Early 2022"]
[White "Guliyev, Namig"]
[Black "Estrada Nieto, Julian"]
[WhiteFideId "13400363"]
[BlackFideId "5101018"]
[WhiteElo "2487"]
[BlackElo "2246"]
[Result "1-0"]
[Round "07"]
[TimeControl "180+1"]
[Date "2022.03.09"]
[WhiteClock "0:00:46"]
[BlackClock "0:00:03"]

1. d4 {[%clk 0:02:56]}  d5 {[%clk 0:02:59]} 2. c4 {[%clk 0:02:55]}  dxc4 {[%clk 0:03:00]} 3. Nf3 {[%clk 0:02:54]}  Nf6 {[%clk 0:03:00]} 4. e3 {[%clk 0:02:54]}  e6 {[%clk 0:02:59]} 5. Bxc4 {[%clk 0:02:54]}  c5 {[%clk 0:02:59]} 6. O-O {[%clk 0:02:54]}  a6 {[%clk 0:03:00]} 7. Nc3 {[%clk 0:02:51]}  b5 {[%clk 0:02:56]} 8. Be2 {[%clk 0:02:51]}  Bb7 {[%clk 0:02:56]} 9. dxc5 {[%clk 0:02:50]}  Bxc5 {[%clk 0:02:49]} 10. Qxd8+ {[%clk 0:02:49]}  Kxd8 {[%clk 0:02:49]} 11. Nd2 {[%clk 0:02:48]}  Nbd7 {[%clk 0:02:48]} 12. Nb3 {[%clk 0:02:48]}  Bb4 {[%clk 0:02:29]} 13. Bd2 {[%clk 0:02:47]}  Ke7 {[%clk 0:02:23]} 14. a3 {[%clk 0:02:46]}  Bxc3 {[%clk 0:02:22]} 15. Bxc3 {[%clk 0:02:46]}  Nd5 {[%clk 0:02:20]} 16. Bd2 {[%clk 0:02:33]}  Rac8 {[%clk 0:02:17]} 17. Rfc1 {[%clk 0:02:31]}  N7f6 {[%clk 0:01:52]} 18. f3 {[%clk 0:02:30]}  Rxc1+ {[%clk 0:01:51]} 19. Rxc1 {[%clk 0:02:30]}  Rc8 {[%clk 0:01:52]} 20. Rxc8 {[%clk 0:02:29]}  Bxc8 {[%clk 0:01:52]} 21. e4 {[%clk 0:02:30]}  Nb6 {[%clk 0:01:48]} 22. Kf2 {[%clk 0:02:24]}  Na4 {[%clk 0:01:47]} 23. Bc1 {[%clk 0:02:23]}  Kd6 {[%clk 0:01:41]} 24. Ke3 {[%clk 0:02:20]}  e5 {[%clk 0:01:41]} 25. Bd1 {[%clk 0:02:15]}  Nd7 {[%clk 0:01:40]} 26. Nd2 {[%clk 0:02:02]}  Ndc5 {[%clk 0:01:32]} 27. b3 {[%clk 0:01:55]}  Nc3 {[%clk 0:01:21]} 28. Bc2 {[%clk 0:01:55]}  a5 {[%clk 0:01:21]} 29. Bb2 {[%clk 0:01:47]}  b4 {[%clk 0:01:21]} 30. Nc4+ {[%clk 0:01:47]}  Ke6 {[%clk 0:01:16]} 31. Nxa5 {[%clk 0:01:47]}  Na6 {[%clk 0:01:02]} 32. Nc6 {[%clk 0:01:36]}  Na2 {[%clk 0:00:43]} 33. a4 {[%clk 0:01:20]}  Bd7 {[%clk 0:00:34]} 34. Nxe5 {[%clk 0:01:18]}  Be8 {[%clk 0:00:28]} 35. Bd3 {[%clk 0:01:16]}  Nc5 {[%clk 0:00:27]} 36. Bc4+ {[%clk 0:01:16]}  Ke7 {[%clk 0:00:28]} 37. Nd3 {[%clk 0:01:14]}  Ne6 {[%clk 0:00:22]} 38. a5 {[%clk 0:01:11]}  Kd6 {[%clk 0:00:19]} 39. a6 {[%clk 0:01:10]}  Kc7 {[%clk 0:00:19]} 40. Bxe6 {[%clk 0:00:59]}  fxe6 {[%clk 0:00:18]} 41. Bxg7 {[%clk 0:00:59]}  Kb6 {[%clk 0:00:17]} 42. Bf8 {[%clk 0:00:56]}  Kxa6 {[%clk 0:00:14]} 43. Bxb4 {[%clk 0:00:56]}  Bb5 {[%clk 0:00:13]} 44. Bd2 {[%clk 0:00:56]}  Kb6 {[%clk 0:00:12]} 45. g4 {[%clk 0:00:55]}  Be8 {[%clk 0:00:11]} 46. h4 {[%clk 0:00:54]}  Kc7 {[%clk 0:00:10]} 47. h5 {[%clk 0:00:53]}  Kd6 {[%clk 0:00:10]} 48. e5+ {[%clk 0:00:53]}  Kd5 {[%clk 0:00:09]} 49. f4 {[%clk 0:00:52]}  Bb5 {[%clk 0:00:07]} 50. g5 {[%clk 0:00:49]}  Be8 {[%clk 0:00:06]} 51. g6 {[%clk 0:00:46]}  Bxg6 {[%clk 0:00:06]} 52. h6 {[%clk 0:00:47]}  Bxd3 {[%clk 0:00:04]} 53. Kxd3 {[%clk 0:00:47]}  Kc5 {[%clk 0:00:03]} 54. Ke4 {[%clk 0:00:46]} 1-0


[Site "https://www.chess.com"]

[Event "Titled Tuesday Blitz March 08 Early 2022"]
[White "Hambleton, Aman"]
[Black "Gombocz, Ferenc Jr."]
[WhiteFideId "2606577"]
[BlackFideId "775029"]
[WhiteElo "2552"]
[BlackElo "1913"]
[Result "1-0"]
[Round "07"]
[TimeControl "180+1"]
[Date "2022.03.09"]
[WhiteClock "0:00:09"]
[BlackClock "0:00:10"]

1. d4 {[%clk 0:02:59]}  d5 {[%clk 0:02:59]} 2. c4 {[%clk 0:02:52]}  c6 {[%clk 0:02:59]} 3. Nf3 {[%clk 0:02:48]}  Nf6 {[%clk 0:02:59]} 4. e3 {[%clk 0:02:44]}  Bf5 {[%clk 0:02:58]} 5. Nc3 {[%clk 0:02:43]}  a6 {[%clk 0:02:58]} 6. cxd5 {[%clk 0:02:09]}  cxd5 {[%clk 0:02:56]} 7. Qb3 {[%clk 0:02:09]}  Ra7 {[%clk 0:02:55]} 8. Bd2 {[%clk 0:02:02]}  Nc6 {[%clk 0:02:55]} 9. Rc1 {[%clk 0:01:58]}  e6 {[%clk 0:02:55]} 10. Na4 {[%clk 0:01:41]}  Bd6 {[%clk 0:02:45]} 11. Be2 {[%clk 0:01:07]}  O-O {[%clk 0:02:44]} 12. Nc5 {[%clk 0:00:56]}  Bxc5 {[%clk 0:02:44]} 13. Rxc5 {[%clk 0:00:57]}  Ne4 {[%clk 0:02:43]} 14. Rc1 {[%clk 0:00:58]}  Nxd2 {[%clk 0:02:43]} 15. Nxd2 {[%clk 0:00:58]}  e5 {[%clk 0:02:41]} 16. dxe5 {[%clk 0:00:53]}  Nxe5 {[%clk 0:02:40]} 17. Qc3 {[%clk 0:00:27]}  Qd6 {[%clk 0:02:26]} 18. O-O {[%clk 0:00:22]}  Raa8 {[%clk 0:02:25]} 19. Nb3 {[%clk 0:00:14]}  Rac8 {[%clk 0:02:21]} 20. Qd2 {[%clk 0:00:14]}  Ng4 {[%clk 0:02:14]} 21. Bxg4 {[%clk 0:00:13]}  Bxg4 {[%clk 0:02:14]} 22. Rxc8 {[%clk 0:00:05]}  Rxc8 {[%clk 0:02:13]} 23. Rc1 {[%clk 0:00:06]}  Rxc1+ {[%clk 0:02:12]} 24. Qxc1 {[%clk 0:00:06]}  g6 {[%clk 0:02:07]} 25. Nd4 {[%clk 0:00:04]}  Bd7 {[%clk 0:02:05]} 26. Qc3 {[%clk 0:00:02]}  b6 {[%clk 0:02:02]} 27. a3 {[%clk 0:00:02]}  Qc5 {[%clk 0:01:56]} 28. Ne2 {[%clk 0:00:02]}  Qxc3 {[%clk 0:01:55]} 29. Nxc3 {[%clk 0:00:02]}  Bc6 {[%clk 0:01:56]} 30. Kf1 {[%clk 0:00:02]}  Kf8 {[%clk 0:01:56]} 31. f3 {[%clk 0:00:02]}  Ke7 {[%clk 0:01:56]} 32. Ke2 {[%clk 0:00:02]}  Kd6 {[%clk 0:01:56]} 33. Kd3 {[%clk 0:00:03]}  Ke5 {[%clk 0:01:32]} 34. f4+ {[%clk 0:00:03]}  Kd6 {[%clk 0:01:31]} 35. Kd4 {[%clk 0:00:04]}  f6 {[%clk 0:01:27]} 36. h4 {[%clk 0:00:04]}  h5 {[%clk 0:01:26]} 37. b4 {[%clk 0:00:03]}  b5 {[%clk 0:01:24]} 38. Nd1 {[%clk 0:00:03]}  Bd7 {[%clk 0:01:22]} 39. Nc3 {[%clk 0:00:02]}  Bc6 {[%clk 0:01:20]} 40. g3 {[%clk 0:00:01]}  Bb7 {[%clk 0:01:19]} 41. Nb1 {[%clk 0:00:01]}  Bc6 {[%clk 0:01:17]} 42. Nd2 {[%clk 0:00:02]}  Bb7 {[%clk 0:01:15]} 43. Nb3 {[%clk 0:00:03]}  Bc8 {[%clk 0:01:12]} 44. Nc5 {[%clk 0:00:04]}  f5 {[%clk 0:01:06]} 45. Nd3 {[%clk 0:00:03]}  Bd7 {[%clk 0:01:05]} 46. Ne5 {[%clk 0:00:03]}  Be8 {[%clk 0:01:05]} 47. Kc3 {[%clk 0:00:03]}  Ke6 {[%clk 0:01:01]} 48. Nf3 {[%clk 0:00:04]}  Bd7 {[%clk 0:00:53]} 49. Ne1 {[%clk 0:00:05]}  Kd6 {[%clk 0:00:49]} 50. Nd3 {[%clk 0:00:05]}  Ke7 {[%clk 0:00:35]} 51. Nc5 {[%clk 0:00:06]}  Bc8 {[%clk 0:00:35]} 52. Kd3 {[%clk 0:00:07]}  Kd6 {[%clk 0:00:17]} 53. Kd4 {[%clk 0:00:07]}  Kc6 {[%clk 0:00:15]} 54. Ke5 {[%clk 0:00:08]}  a5 {[%clk 0:00:14]} 55. Nb3 {[%clk 0:00:08]}  axb4 {[%clk 0:00:13]} 56. axb4 {[%clk 0:00:09]}  Bd7 {[%clk 0:00:13]} 57. Nd4+ {[%clk 0:00:09]}  Kb6 {[%clk 0:00:13]} 58. Kf6 {[%clk 0:00:09]}  Be8 {[%clk 0:00:12]} 59. Ke7 {[%clk 0:00:09]}  Bc6 {[%clk 0:00:12]} 60. Kf7 {[%clk 0:00:09]}  Bd7 {[%clk 0:00:10]} 61. Kxg6 {[%clk 0:00:09]}  Be8+ {[%clk 0:00:10]} 62. Kxf5 {[%clk 0:00:09]} 1-0


[Site "https://www.chess.com"]

[Event "Titled Tuesday Blitz March 08 Early 2022"]
[White "Hess, Max"]
[Black "Kamsky, Gata"]
[WhiteFideId "24656666"]
[BlackFideId "2000024"]
[WhiteElo "2276"]
[BlackElo "2645"]
[Result "0-1"]
[Round "07"]
[TimeControl "180+1"]
[Date "2022.03.08"]
[WhiteClock "0:00:01"]
[BlackClock "0:00:48"]

1. d4 {[%clk 0:03:00]}  Nf6 {[%clk 0:02:55]} 2. Nf3 {[%clk 0:03:01]}  g6 {[%clk 0:02:55]} 3. g3 {[%clk 0:03:01]}  Bg7 {[%clk 0:02:55]} 4. Bg2 {[%clk 0:03:01]}  O-O {[%clk 0:02:55]} 5. O-O {[%clk 0:03:02]}  d5 {[%clk 0:02:56]} 6. c4 {[%clk 0:03:02]}  c6 {[%clk 0:02:56]} 7. b3 {[%clk 0:03:02]}  a5 {[%clk 0:02:54]} 8. Nc3 {[%clk 0:03:00]}  Ne4 {[%clk 0:02:53]} 9. Bb2 {[%clk 0:02:59]}  Bf5 {[%clk 0:02:53]} 10. e3 {[%clk 0:02:55]}  Nxc3 {[%clk 0:02:52]} 11. Bxc3 {[%clk 0:02:55]}  Be4 {[%clk 0:02:52]} 12. Qe2 {[%clk 0:02:48]}  e6 {[%clk 0:02:52]} 13. Rfc1 {[%clk 0:02:37]}  Nd7 {[%clk 0:02:50]} 14. Ne1 {[%clk 0:02:37]}  Bxg2 {[%clk 0:02:49]} 15. Kxg2 {[%clk 0:02:38]}  Qb6 {[%clk 0:02:47]} 16. Nd3 {[%clk 0:02:26]}  Qa6 {[%clk 0:02:46]} 17. Nf4 {[%clk 0:02:03]}  Rfe8 {[%clk 0:02:41]} 18. cxd5 {[%clk 0:01:42]}  Qxe2 {[%clk 0:02:38]} 19. Nxe2 {[%clk 0:01:43]}  exd5 {[%clk 0:02:38]} 20. Nf4 {[%clk 0:01:27]}  Bf8 {[%clk 0:02:37]} 21. Nd3 {[%clk 0:01:27]}  Bd6 {[%clk 0:02:34]} 22. a4 {[%clk 0:01:23]}  f6 {[%clk 0:02:28]} 23. Bb2 {[%clk 0:01:23]}  Kf7 {[%clk 0:02:27]} 24. Ba3 {[%clk 0:01:23]}  Bxa3 {[%clk 0:02:25]} 25. Rxa3 {[%clk 0:01:24]}  Nb6 {[%clk 0:02:23]} 26. Nc5 {[%clk 0:01:19]}  Ra7 {[%clk 0:02:16]} 27. Ra2 {[%clk 0:01:19]}  Nc8 {[%clk 0:02:15]} 28. Rac2 {[%clk 0:01:05]}  Nd6 {[%clk 0:02:14]} 29. Nd3 {[%clk 0:00:56]}  g5 {[%clk 0:02:10]} 30. g4 {[%clk 0:00:55]}  Raa8 {[%clk 0:02:06]} 31. Rh1 {[%clk 0:00:49]}  Re4 {[%clk 0:01:59]} 32. h3 {[%clk 0:00:42]}  h5 {[%clk 0:01:56]} 33. Nc5 {[%clk 0:00:42]}  Re7 {[%clk 0:01:55]} 34. gxh5 {[%clk 0:00:34]}  Rh8 {[%clk 0:01:49]} 35. h4 {[%clk 0:00:34]}  g4 {[%clk 0:01:48]} 36. Kg3 {[%clk 0:00:31]}  f5 {[%clk 0:01:45]} 37. Nd3 {[%clk 0:00:29]}  Rxh5 {[%clk 0:01:43]} 38. Nf4 {[%clk 0:00:22]}  Rh6 {[%clk 0:01:41]} 39. h5 {[%clk 0:00:21]}  Ne4+ {[%clk 0:01:38]} 40. Kg2 {[%clk 0:00:21]}  Kf6 {[%clk 0:01:36]} 41. f3 {[%clk 0:00:14]}  Ng5 {[%clk 0:01:04]} 42. fxg4 {[%clk 0:00:13]}  fxg4 {[%clk 0:00:57]} 43. Kf2 {[%clk 0:00:10]}  Kf5 {[%clk 0:00:55]} 44. Ke2 {[%clk 0:00:08]}  Ne6 {[%clk 0:00:54]} 45. Nxe6 {[%clk 0:00:05]}  Rhxe6 {[%clk 0:00:53]} 46. Rc3 {[%clk 0:00:05]}  Kg5 {[%clk 0:00:54]} 47. Kd2 {[%clk 0:00:02]}  Rf6 {[%clk 0:00:52]} 48. Rh2 {[%clk 0:00:01]}  Rh7 {[%clk 0:00:48]} 49. Ke2 {[%clk 0:00:01]}  Rxh5 {[%clk 0:00:48]} 50. Rxh5+ {[%clk 0:00:02]}  Kxh5 {[%clk 0:00:48]} 51. Rc5 {[%clk 0:00:01]}  g3 {[%clk 0:00:48]} 0-1


[Site "https://www.chess.com"]